bitfinex/quotes_BTCUSD_20250928
["timestamp","ask_amount","ask_price","bid_price","bid_amount"]
[1759017601734,6.26619644,109940.0,109930.0,0.05951795]
[1759017602811,6.241969,109940.0,109930.0,0.05951795]
[1759017603255,6.241969,109940.0,109930.0,0.10951795]
[1759017603708,6.241969,109940.0,109930.0,0.13966985]
[1759017606258,6.227699,109940.0,109930.0,0.13966985]
[1759017607087,6.227699,109940.0,109930.0,0.3216038]
[1759017610529,6.23409931,109940.0,109930.0,0.3216038]
[1759017611392,6.23409931,109940.0,109930.0,0.3206038]
[1759017611678,6.23409931,109940.0,109930.0,0.3256038]
[1759017612856,6.23409931,109940.0,109930.0,0.3246038]
[1759017613080,6.23409931,109940.0,109930.0,0.3296038]
[1759017613544,6.23409931,109940.0,109930.0,0.3246038]
[1759017614014,6.23409931,109940.0,109930.0,0.3296038]
[1759017615909,6.23409931,109940.0,109930.0,0.6134438]
[1759017616322,0.00640031,109940.0,109930.0,0.6134438]
[1759017616546,0.06457,109950.0,109940.0,0.0301519]
[1759017616753,6.23409591,109950.0,109940.0,0.0353619]
[1759017616982,6.23409591,109950.0,109940.0,0.0596119]
[1759017617208,6.23409591,109950.0,109940.0,0.0869824]
[1759017617932,6.23409591,109950.0,109940.0,0.0899824]
[1759017618787,6.24836502,109950.0,109940.0,0.0929824]
[1759017619711,6.24836502,109950.0,109940.0,0.1076205]
[1759017619922,6.53224502,109950.0,109940.0,0.1076205]
[1759017620365,6.52584811,109950.0,109940.0,0.1076205]
[1759017620579,6.5322441,109950.0,109940.0,0.1076205]
[1759017620786,6.55647158,109950.0,109940.0,0.1076205]
[1759017620992,6.72410333,109950.0,109940.0,0.1076205]
[1759017621672,6.72410333,109950.0,109940.0,0.1016205]
[1759017621878,6.54220247,109950.0,109940.0,0.1036205]
[1759017622725,6.54220247,109950.0,109940.0,0.1056205]
[1759017624097,6.72410333,109950.0,109940.0,0.1056205]
[1759017625879,6.73837314,109950.0,109940.0,0.1056205]
[1759017626308,6.72410333,109950.0,109940.0,0.1056205]
[1759017629296,6.73837314,109950.0,109940.0,0.1056205]
[1759017631848,6.45449314,109950.0,109940.0,0.1056205]
[1759017632028,6.55651228,109950.0,109940.0,0.1056205]
[1759017632389,6.73841314,109950.0,109940.0,0.1056205]
[1759017633034,6.51329914,109950.0,109940.0,0.1056205]
[1759017634003,6.4890717,109950.0,109940.0,0.1056205]
[1759017634465,6.2842792,109950.0,109940.0,0.1056205]
[1759017634653,6.48044987,109950.0,109940.0,0.1056205]
[1759017636785,6.19656987,109950.0,109940.0,0.1056205]
[1759017637029,6.48040987,109950.0,109940.0,0.1056205]
[1759017637448,6.46614006,109950.0,109940.0,0.1056205]
[1759017640501,6.48040987,109950.0,109940.0,0.1056205]
[1759017644062,6.31680367,109950.0,109940.0,0.1056205]
[1759017646196,6.03296367,109950.0,109940.0,0.1056205]
[1759017646446,6.3089388,109950.0,109940.0,0.1056205]
[1759017649514,6.32320862,109950.0,109940.0,0.1056205]
[1759017650144,6.03936862,109950.0,109940.0,0.1056205]
[1759017650357,6.32320862,109950.0,109940.0,0.1056205]
[1759017650564,6.31680368,109950.0,109940.0,0.1056205]
[1759017650779,6.32321389,109950.0,109940.0,0.1056205]
[1759017652167,6.3232139,109950.0,109940.0,0.1056205]
[1759017653718,6.35058677,109950.0,109940.0,0.1056205]
[1759017655938,6.30894408,109950.0,109940.0,0.1056205]
[1759017657932,6.33631696,109950.0,109940.0,0.1056205]
[1759017658680,6.30894408,109950.0,109940.0,0.07825]
[1759017658887,6.3232141,109950.0,109940.0,0.07825]
[1759017661050,6.11600024,109950.0,109940.0,0.07825]
[1759017661273,6.2979011,109950.0,109940.0,0.07825]
[1759017661484,6.0140611,109950.0,109940.0,0.08346]
[1759017661731,6.2979011,109950.0,109940.0,0.08346]
[1759017661935,6.2979011,109950.0,109940.0,0.07825]
[1759017663014,6.11600024,109950.0,109940.0,0.08346]
[1759017663262,5.83216024,109950.0,109940.0,0.08346]
[1759017663484,6.11604024,109950.0,109940.0,0.08346]
[1759017664863,6.2979411,109950.0,109940.0,0.07825]
[1759017666083,6.28367108,109950.0,109940.0,0.07825]
[1759017670765,6.11914991,109950.0,109940.0,0.07825]
[1759017677250,6.10487986,109950.0,109940.0,0.07825]
[1759017680304,6.11914991,109950.0,109940.0,0.07825]
[1759017680504,5.82526991,109950.0,109940.0,0.07825]
[1759017681876,6.10910991,109950.0,109940.0,0.07825]
[1759017684107,6.11551949,109950.0,109940.0,0.07825]
[1759017686852,6.10124944,109950.0,109940.0,0.07825]
[1759017688261,6.10124951,109950.0,109940.0,0.07825]
[1759017691089,6.11551956,109950.0,109940.0,0.07825]
[1759017696408,6.10124951,109950.0,109940.0,0.07825]
[1759017697592,6.12629948,109950.0,109940.0,0.07825]
[1759017698381,6.12629948,109950.0,109940.0,0.07425]
[1759017699929,5.93455095,109950.0,109940.0,0.07425]
[1759017700597,5.9619257,109950.0,109940.0,0.07425]
[1759017701005,5.97619638,109950.0,109940.0,0.07425]
[1759017703878,5.69235638,109950.0,109940.0,0.07425]
[1759017704094,5.69235638,109950.0,109940.0,0.07638]
[1759017704296,5.94882163,109950.0,109940.0,0.07943]
[1759017705475,5.66497698,109950.0,109940.0,0.07943]
[1759017705662,5.94881698,109950.0,109940.0,0.07943]
[1759017707050,5.94881698,109950.0,109940.0,0.07638]
[1759017707249,5.94881698,109950.0,109940.0,0.07425]
[1759017707460,5.66497698,109950.0,109940.0,0.07638]
[1759017707665,5.94929698,109950.0,109940.0,0.07943]
[1759017709870,5.66497698,109950.0,109940.0,0.07943]
[1759017710183,5.94929698,109950.0,109940.0,0.07943]
[1759017711005,5.74173654,109950.0,109940.0,0.07943]
[1759017713832,5.74173654,109950.0,109940.0,0.07638]
[1759017715174,5.74173654,109950.0,109940.0,0.0795]
[1759017719116,5.76911129,109950.0,109940.0,0.0795]
[1759017720898,5.48479129,109950.0,109940.0,0.0795]
[1759017721076,5.76915129,109950.0,109940.0,0.0795]
[1759017721612,5.76911129,109950.0,109940.0,0.0795]
[1759017727994,5.30289043,109950.0,109940.0,0.0795]
[1759017728218,5.58709043,109950.0,109940.0,0.0795]
[1759017728624,5.76899129,109950.0,109940.0,0.0795]
[1759017730558,5.76899129,109950.0,109940.0,0.07638]
[1759017732885,5.58709043,109950.0,109940.0,0.07638]
[1759017733735,5.58709043,109950.0,109940.0,0.07943]
[1759017736536,5.58697043,109950.0,109940.0,0.07943]
[1759017737367,5.30289043,109950.0,109940.0,0.07943]
[1759017737706,5.58693043,109950.0,109940.0,0.07943]
[1759017738878,5.30289043,109950.0,109940.0,0.07943]
[1759017739087,5.58693043,109950.0,109940.0,0.07943]
[1759017741325,5.30289043,109950.0,109940.0,0.07943]
[1759017741525,5.58701043,109950.0,109940.0,0.07943]
[1759017741740,5.58697043,109950.0,109940.0,0.07943]
[1759017741966,5.30289043,109950.0,109940.0,0.07943]
[1759017742149,5.545405,109950.0,109940.0,0.07943]
[1759017742770,5.545405,109950.0,109940.0,0.10680287]
[1759017742983,5.545405,109950.0,109940.0,0.10880287]
[1759017743190,5.545405,109950.0,109940.0,0.10680287]
[1759017743629,5.545405,109950.0,109940.0,0.10980287]
[1759017743855,5.545405,109950.0,109940.0,0.11180287]
[1759017744245,5.545405,109950.0,109940.0,0.10980287]
[1759017744669,5.545405,109950.0,109940.0,0.11280287]
[1759017745072,5.27551492,109950.0,109940.0,0.11280287]
[1759017745275,5.55967492,109950.0,109940.0,0.11280287]
[1759017746255,5.545405,109950.0,109940.0,0.11280287]
[1759017748483,5.372902,109950.0,109940.0,0.11280287]
[1759017749482,5.38717187,109950.0,109940.0,0.11280287]
[1759017757196,5.38693187,109950.0,109940.0,0.11280287]
[1759017760480,5.39333043,109950.0,109940.0,0.11280287]
[1759017763089,5.37906056,109950.0,109940.0,0.11280287]
[1759017766215,5.39333,109950.0,109940.0,0.11280287]
[1759017767136,5.20557513,109950.0,109940.0,0.11280287]
[1759017767339,5.19130556,109950.0,109940.0,0.11280287]
[1759017767748,5.19126556,109950.0,109940.0,0.11280287]
[1759017767900,4.90738556,109950.0,109940.0,0.11280287]
[1759017768114,5.19126556,109950.0,109940.0,0.11280287]
[1759017770251,5.205535,109950.0,109940.0,0.11280287]
[1759017771527,4.921655,109950.0,109940.0,0.11280287]
[1759017771727,5.205535,109950.0,109940.0,0.11280287]
[1759017772608,4.921655,109950.0,109940.0,0.11280287]
[1759017772807,5.205535,109950.0,109940.0,0.11280287]
[1759017775620,4.921655,109950.0,109940.0,0.11280287]
[1759017775970,5.205535,109950.0,109940.0,0.11280287]
[1759017776206,5.19126556,109950.0,109940.0,0.11280287]
[1759017779263,5.20553498,109950.0,109940.0,0.11280287]
[1759017779471,5.20553498,109950.0,109940.0,0.10762287]
[1759017779857,5.20553498,109950.0,109940.0,0.08025]
[1759017781766,5.20553498,109950.0,109940.0,0.08232]
[1759017784392,5.20553498,109950.0,109940.0,0.08541]
[1759017786240,5.19158556,109950.0,109940.0,0.08541]
[1759017786623,4.90738556,109950.0,109940.0,0.08541]
[1759017789470,4.92165503,109950.0,109940.0,0.08541]
[1759017792315,4.92165503,109950.0,109940.0,0.11278228]
[1759017792565,4.92165503,109950.0,109940.0,0.32485158]
[1759017793286,4.92165503,109950.0,109940.0,0.14293418]
[1759017793489,4.92165503,109950.0,109940.0,0.16112592]
[1759017793937,4.92165503,109950.0,109940.0,0.42745418]
[1759017798171,4.92165503,109950.0,109940.0,0.14293418]
[1759017798383,4.92165503,109950.0,109940.0,0.42753418]
[1759017799051,4.92165503,109950.0,109940.0,0.14293418]
[1759017799230,4.92165503,109950.0,109940.0,0.42757418]
[1759017799735,4.90738556,109950.0,109940.0,0.42757418]
[1759017802510,4.90738556,109950.0,109940.0,0.42753418]
[1759017802842,4.92165495,109950.0,109940.0,0.42753418]
[1759017806258,4.90738556,109950.0,109940.0,0.42753418]
[1759017807858,0.53491573,109960.0,109940.0,0.42444418]
[1759017808064,4.733676,109950.0,109940.0,0.42444418]
[1759017808688,4.733676,109950.0,109940.0,0.42439418]
[1759017809070,4.733676,109950.0,109940.0,0.42639418]
[1759017809475,4.74794539,109950.0,109940.0,0.42439418]
[1759017809836,4.74794539,109950.0,109940.0,0.42739418]
[1759017810014,4.74794539,109950.0,109940.0,0.42735418]
[1759017814750,4.74794539,109950.0,109940.0,0.42743418]
[1759017815184,4.733676,109950.0,109940.0,0.42743418]
[1759017818467,4.74794533,109950.0,109940.0,0.42743418]
[1759017819886,4.7543535,109950.0,109940.0,0.42743418]
[1759017825860,4.74008417,109950.0,109940.0,0.42743418]
[1759017826943,4.74008417,109950.0,109940.0,0.42759418]
[1759017827567,4.56204817,109950.0,109940.0,0.42759418]
[1759017829134,4.57631743,109950.0,109940.0,0.42759418]
[1759017831981,4.57631713,109950.0,109940.0,0.42759418]
[1759017835660,4.57631725,109950.0,109940.0,0.42759418]
[1759017838638,4.56204799,109950.0,109940.0,0.42759418]
[1759017841385,4.57631775,109950.0,109940.0,0.42759418]
[1759017843479,4.57631775,109950.0,109940.0,0.14279418]
[1759017843681,4.57631775,109950.0,109940.0,0.44570592]
[1759017843840,4.57631775,109950.0,109940.0,0.42751418]
[1759017844048,4.57631775,109950.0,109940.0,0.42456418]
[1759017844661,4.57631775,109950.0,109940.0,0.13984418]
[1759017844860,4.57631775,109950.0,109940.0,0.13777418]
[1759017845063,4.57631775,109950.0,109940.0,0.42249418]
[1759017847543,4.57631775,109950.0,109940.0,0.42752418]
[1759017850204,4.39184375,109950.0,109940.0,0.42752418]
[1759017854012,4.37757449,109950.0,109940.0,0.42752418]
[1759017855351,4.37757449,109950.0,109940.0,0.60944158]
[1759017855800,0.00640849,109950.0,109940.0,0.60944158]
[1759017856021,0.00640849,109950.0,109940.0,0.70424158]
[1759017857506,0.00640849,109950.0,109940.0,0.70124158]
[1759017857934,0.00640849,109950.0,109940.0,0.70424158]
[1759017858369,0.00640849,109950.0,109940.0,0.71124158]
[1759017860882,0.00640849,109950.0,109940.0,0.33172158]
[1759017861083,0.00640849,109950.0,109940.0,0.71148158]
[1759017862416,0.00640849,109950.0,109940.0,0.33172158]
[1759017862625,0.00640849,109950.0,109940.0,0.71152158]
[1759017867085,0.00640849,109950.0,109940.0,0.33172158]
[1759017867331,0.00640849,109950.0,109940.0,0.71152158]
[1759017872362,0.04105982,109960.0,109950.0,0.0301519]
[1759017872555,4.39593371,109960.0,109950.0,0.0351819]
[1759017872890,4.39593371,109960.0,109950.0,0.0593019]
[1759017873092,4.39593371,109960.0,109950.0,0.08666918]
[1759017873494,4.39593371,109960.0,109950.0,0.09066918]
[1759017874767,4.39593371,109960.0,109950.0,0.09566918]
[1759017876051,4.39593371,109960.0,109950.0,0.38062918]
[1759017880926,4.23251,109960.0,109950.0,0.38062918]
[1759017883413,4.24507788,109960.0,109950.0,0.38062918]
[1759017886549,4.24507788,109960.0,109950.0,0.37763918]
[1759017886753,4.24507788,109960.0,109950.0,0.37559918]
[1759017887522,4.24507788,109960.0,109950.0,0.37571918]
[1759017888056,4.24507788,109960.0,109950.0,0.37071918]
[1759017888361,4.24507788,109960.0,109950.0,0.37371918]
[1759017889150,4.24507788,109960.0,109950.0,0.36971918]
[1759017889369,4.24507788,109960.0,109950.0,0.37271918]
[1759017893145,4.25148405,109960.0,109950.0,0.37271918]
[1759017894564,4.25148405,109960.0,109950.0,0.08763918]
[1759017894771,4.25148405,109960.0,109950.0,0.37259918]
[1759017899806,4.25148405,109960.0,109950.0,0.37771918]
[1759017902961,4.25148405,109960.0,109950.0,0.37460918]
[1759017903136,4.25148405,109960.0,109950.0,0.37771918]
[1759017903521,4.04930905,109960.0,109950.0,0.37460918]
[1759017903944,4.04930905,109960.0,109950.0,0.37771918]
[1759017904362,4.04930905,109960.0,109950.0,0.09275918]
[1759017904540,4.04930905,109960.0,109950.0,0.37448918]
[1759017905281,4.04930905,109960.0,109950.0,0.37452918]
[1759017906407,4.04930905,109960.0,109950.0,0.37251918]
[1759017908068,4.04930905,109960.0,109950.0,0.13763918]
[1759017908297,4.04930899,109960.0,109950.0,0.3751119]
[1759017908504,4.33430899,109960.0,109950.0,0.34496]
[1759017908716,4.51619331,109960.0,109950.0,0.08012]
[1759017909164,4.51619331,109960.0,109950.0,0.02712]
[1759017909165,4.5384018,109960.0,109950.0,0.02712]
[1759017909382,4.5384018,109960.0,109950.0,0.07712]
[1759017909612,4.56577465,109960.0,109950.0,0.07512]
[1759017909841,4.58004407,109960.0,109950.0,0.07512]
[1759017910045,4.58004407,109960.0,109950.0,0.07612]
[1759017910294,4.58004407,109960.0,109950.0,0.07512]
[1759017910715,4.58104407,109960.0,109950.0,0.07512]
[1759017910924,4.58104407,109960.0,109950.0,0.07412]
[1759017911142,4.58204407,109960.0,109950.0,0.07412]
[1759017911777,4.55983558,109960.0,109950.0,0.07412]
[1759017912431,4.09295126,109960.0,109950.0,0.07412]
[1759017912559,4.37803126,109960.0,109950.0,0.07412]
[1759017913019,4.55991558,109960.0,109950.0,0.07412]
[1759017913699,4.37803126,109960.0,109950.0,0.07412]
[1759017914123,4.55991558,109960.0,109950.0,0.07412]
[1759017914503,4.37799126,109960.0,109950.0,0.07412]
[1759017914880,4.55987558,109960.0,109950.0,0.07412]
[1759017915283,4.55887558,109960.0,109950.0,0.07412]
[1759017915771,4.55887558,109960.0,109950.0,0.07512]
[1759017916148,4.54360616,109960.0,109950.0,0.07512]
[1759017916601,4.54360616,109960.0,109950.0,0.07612]
[1759017918879,4.54348616,109960.0,109950.0,0.07612]
[1759017919287,4.55775555,109960.0,109950.0,0.07612]
[1759017920327,4.27283555,109960.0,109950.0,0.07612]
[1759017920499,4.55775555,109960.0,109950.0,0.07612]
[1759017922359,4.27283555,109960.0,109950.0,0.07612]
[1759017922585,4.55775555,109960.0,109950.0,0.07612]
[1759017922816,4.55779555,109960.0,109950.0,0.07612]
[1759017925369,4.09095123,109960.0,109950.0,0.07823]
[1759017925569,4.37587123,109960.0,109950.0,0.08143]
[1759017925991,4.55775555,109960.0,109950.0,0.08143]
[1759017926134,4.55775555,109960.0,109950.0,0.07612]
[1759017928818,4.55774497,109960.0,109950.0,0.07612]
[1759017931605,4.38457609,109960.0,109950.0,0.07612]
[1759017932212,4.39685892,109960.0,109950.0,0.07612]
[1759017934138,3.9300546,109960.0,109950.0,0.07612]
[1759017934375,4.2150946,109960.0,109950.0,0.07612]
[1759017935071,3.9300546,109960.0,109950.0,0.07612]
[1759017935210,4.2150546,109960.0,109950.0,0.07612]
[1759017935765,4.39693892,109960.0,109950.0,0.07612]
[1759017935974,4.2150546,109960.0,109950.0,0.07612]
[1759017936204,4.39693892,109960.0,109950.0,0.07612]
[1759017938898,4.38266953,109960.0,109950.0,0.07612]
[1759017940953,4.38266953,109960.0,109950.0,0.07512]
[1759017941793,4.38266953,109960.0,109950.0,0.07412]
[1759017942010,4.39693901,109960.0,109950.0,0.07412]
[1759017942208,4.39793901,109960.0,109950.0,0.07412]
[1759017942493,4.39893901,109960.0,109950.0,0.07412]
[1759017946225,4.38466953,109960.0,109950.0,0.07412]
[1759017949430,4.39893913,109960.0,109950.0,0.07412]
[1759017952123,4.39933913,109960.0,109950.0,0.07412]
[1759017952730,4.11393913,109960.0,109950.0,0.07412]
[1759017953228,4.39929913,109960.0,109950.0,0.07412]
[1759017960465,4.38502953,109960.0,109950.0,0.07412]
[1759017960670,4.38502953,109960.0,109950.0,0.07919]
[1759017961252,4.38502953,109960.0,109950.0,0.07609]
[1759017963399,4.39929894,109960.0,109950.0,0.07609]
[1759017964199,4.39929894,109960.0,109950.0,0.07412]
[1759017966560,4.38502953,109960.0,109950.0,0.07412]
[1759017968975,4.38502953,109960.0,109950.0,0.07609]
[1759017969652,4.39929905,109960.0,109950.0,0.07412]
[1759017971860,4.39929905,109960.0,109950.0,0.02412]
[1759017973985,4.22534567,109960.0,109950.0,0.02412]
[1759017974193,4.25272214,109960.0,109950.0,0.02412]
[1759017976248,4.23845262,109960.0,109950.0,0.02412]
[1759017979500,4.25272342,109960.0,109950.0,0.02412]
[1759017980493,4.25244342,109960.0,109950.0,0.02412]
[1759017980735,4.34724342,109960.0,109950.0,0.02412]
[1759017980935,4.25244342,109960.0,109950.0,0.02412]
[1759017981141,4.34724342,109960.0,109950.0,0.02412]
[1759017984298,4.25232342,109960.0,109950.0,0.02412]
[1759017984498,4.34712342,109960.0,109950.0,0.02412]
[1759017985734,4.25232342,109960.0,109950.0,0.02412]
[1759017985927,4.34712342,109960.0,109950.0,0.02412]
[1759017986723,4.34612342,109960.0,109950.0,0.02412]
[1759017987081,4.34512342,109960.0,109950.0,0.02412]
[1759017987259,4.35112342,109960.0,109950.0,0.02412]
[1759017987999,4.15695627,109960.0,109950.0,0.02412]
[1759017988210,4.33884059,109960.0,109950.0,0.02412]
[1759017989834,4.36076428,109960.0,109950.0,0.02412]
[1759017991551,4.36064428,109960.0,109950.0,0.02412]
[1759017991756,3.98100428,109960.0,109950.0,0.02412]
[1759017991984,4.36060428,109960.0,109950.0,0.02412]
[1759017992210,3.98100428,109960.0,109950.0,0.02412]
[1759017992427,4.36060428,109960.0,109950.0,0.02412]
[1759017992819,4.34633348,109960.0,109950.0,0.02412]
[1759017993359,4.25153348,109960.0,109950.0,0.02412]
[1759017993633,4.34633348,109960.0,109950.0,0.02412]
[1759017995911,4.3606049,109960.0,109950.0,0.02412]
[1759017997091,4.34633348,109960.0,109950.0,0.02412]
[1759017999849,4.3606049,109960.0,109950.0,0.02412]
[1759018003473,4.36701154,109960.0,109950.0,0.02412]
[1759018004417,4.36701185,109960.0,109950.0,0.02412]
[1759018008882,4.46228923,109960.0,109950.0,0.02412]
[1759018009096,4.44801781,109960.0,109950.0,0.02412]
[1759018009309,4.55277687,109960.0,109950.0,0.02412]
[1759018009954,4.54977687,109960.0,109950.0,0.02412]
[1759018010168,4.17017687,109960.0,109950.0,0.02412]
[1759018010593,4.92605687,109960.0,109950.0,0.02412]
[1759018010932,4.93205687,109960.0,109950.0,0.02412]
[1759018011157,4.17317687,109960.0,109950.0,0.02412]
[1759018011386,4.93805687,109960.0,109950.0,0.02412]
[1759018012167,4.95232994,109960.0,109950.0,0.02412]
[1759018014131,4.19344438,109960.0,109950.0,0.02412]
[1759018014369,4.95240438,109960.0,109950.0,0.02412]
[1759018016998,4.94600299,109960.0,109950.0,0.02412]
[1759018017201,4.95240279,109960.0,109950.0,0.02412]
[1759018018216,4.94600299,109960.0,109950.0,0.02412]
[1759018018421,4.95240225,109960.0,109950.0,0.02412]
[1759018018615,4.83439266,109960.0,109950.0,0.02412]
[1759018018842,4.92923266,109960.0,109950.0,0.02412]
[1759018019913,4.17039266,109960.0,109950.0,0.02412]
[1759018020093,4.43284487,109960.0,109950.0,0.02412]
[1759018020312,4.90704487,109960.0,109950.0,0.02412]
[1759018022146,4.90704487,109960.0,109950.0,0.02622]
[1759018022343,4.14816487,109960.0,109950.0,0.02622]
[1759018022572,4.52768487,109960.0,109950.0,0.02925]
[1759018022935,4.5134118,109960.0,109950.0,0.02925]
[1759018023565,4.5074118,109960.0,109950.0,0.02925]
[1759018023891,4.5054118,109960.0,109950.0,0.02925]
[1759018024194,4.5094118,109960.0,109950.0,0.02925]
[1759018025146,4.4145718,109960.0,109950.0,0.02925]
[1759018025358,4.5094118,109960.0,109950.0,0.02925]
[1759018025560,4.52368457,109960.0,109950.0,0.02925]
[1759018026254,4.09416457,109960.0,109950.0,0.01650529]
[1759018026484,4.47372457,109960.0,109950.0,0.01650529]
[1759018026879,4.0798918,109960.0,109950.0,0.01650529]
[1759018027112,4.4594918,109960.0,109950.0,0.01650529]
[1759018029530,4.4594918,109960.0,109950.0,0.01278908]
[1759018029735,4.47376403,109960.0,109950.0,0.01278908]
[1759018032176,4.26265965,109960.0,109950.0,0.01278908]
[1759018032399,3.88305903,109960.0,109950.0,0.01278908]
[1759018032594,4.26261903,109960.0,109950.0,0.01278908]
[1759018033404,4.26262126,109960.0,109950.0,0.01278908]
[1759018036676,4.16774126,109960.0,109950.0,0.01278908]
[1759018036872,4.26258126,109960.0,109950.0,0.01278908]
[1759018041110,4.26258126,109960.0,109950.0,0.00975908]
[1759018042169,3.88306126,109960.0,109950.0,0.00975908]
[1759018042369,4.26258126,109960.0,109950.0,0.01295908]
[1759018043232,3.88306126,109960.0,109950.0,0.00975908]
[1759018043405,4.26258126,109960.0,109950.0,0.00975908]
[1759018044279,4.26258126,109960.0,109950.0,0.00765908]
[1759018044280,4.35983201,109960.0,109950.0,0.00765908]
[1759018044483,4.3828816,109960.0,109950.0,0.00765908]
[1759018044685,4.30785864,109960.0,109950.0,0.00765908]
[1759018047356,4.30785864,109960.0,109950.0,0.00765908]
[1759018047850,4.28480905,109960.0,109950.0,0.00765908]
[1759018049937,4.28481431,109960.0,109950.0,0.00765908]
[1759018051915,0.18196132,109930.0,109910.0,0.05]
[1759018052125,0.18196706,109910.0,109900.0,0.12295609]
[1759018052339,0.18196706,109910.0,109900.0,0.12504609]
[1759018052340,3.99293781,109910.0,109900.0,0.12504609]
[1759018052546,4.01669781,109910.0,109900.0,0.05529]
[1759018052934,3.97992281,109910.0,109900.0,0.05529]
[1759018053350,3.82534049,109910.0,109900.0,0.05575444]
[1759018053922,4.00730755,109910.0,109900.0,0.05575444]
[1759018054150,3.82534049,109910.0,109900.0,0.08051444]
[1759018054584,3.82534049,109910.0,109900.0,0.08351444]
[1759018054801,3.82534049,109910.0,109900.0,0.08651444]
[1759018055014,3.83961591,109910.0,109900.0,0.08651444]
[1759018055502,4.02158297,109910.0,109900.0,0.08651444]
[1759018056332,4.00730755,109910.0,109900.0,0.08651444]
[1759018057236,3.82534049,109910.0,109900.0,0.08651444]
[1759018057822,4.00730755,109910.0,109900.0,0.08651444]
[1759018058401,3.82534049,109910.0,109900.0,0.08651444]
[1759018058630,4.00730755,109910.0,109900.0,0.08651444]
[1759018060575,4.02158285,109910.0,109900.0,0.08651444]
[1759018062208,3.83961579,109910.0,109900.0,0.08651444]
[1759018062618,4.02158285,109910.0,109900.0,0.08651444]
[1759018062798,3.83977579,109910.0,109900.0,0.08651444]
[1759018062966,3.55349579,109910.0,109900.0,0.08651444]
[1759018063174,3.83977579,109910.0,109900.0,0.08651444]
[1759018063738,3.83989579,109910.0,109900.0,0.08651444]
[1759018065534,3.55349579,109910.0,109900.0,0.08651444]
[1759018065733,3.83997579,109910.0,109900.0,0.08651444]
[1759018066191,3.82570049,109910.0,109900.0,0.08651444]
[1759018067677,3.82574049,109910.0,109900.0,0.08651444]
[1759018069099,3.53922049,109910.0,109900.0,0.08651444]
[1759018069343,3.81263069,109910.0,109900.0,0.08651444]
[1759018071185,3.81267069,109910.0,109900.0,0.08651444]
[1759018072331,3.52611069,109910.0,109900.0,0.08651444]
[1759018072598,3.81275069,109910.0,109900.0,0.08651444]
[1759018073708,3.52611069,109910.0,109900.0,0.11666634]
[1759018073943,3.81275069,109910.0,109900.0,0.1348647]
[1759018074632,3.52611069,109910.0,109900.0,0.31684832]
[1759018074634,3.81279069,109910.0,109900.0,0.31684832]
[1759018074898,3.81279069,109910.0,109900.0,0.32603123]
[1759018076356,3.79851575,109910.0,109900.0,0.32603123]
[1759018077109,3.51183575,109910.0,109900.0,0.32603123]
[1759018077351,3.79851575,109910.0,109900.0,0.32603123]
[1759018078258,3.51183575,109910.0,109900.0,0.32603123]
[1759018079186,0.03016675,109910.0,109900.0,0.32303123]
[1759018079386,0.02376,109910.0,109900.0,0.32803123]
[1759018079527,0.02376,109910.0,109900.0,0.32503123]
[1759018079967,0.02376,109910.0,109900.0,0.32903123]
[1759018080400,0.02376,109910.0,109900.0,0.32503123]
[1759018080776,0.02376,109910.0,109900.0,0.32003123]
[1759018080992,0.02376,109910.0,109900.0,0.43087123]
[1759018082596,0.09484,109960.0,109940.0,0.0301519]
[1759018082792,3.55462509,109950.0,109940.0,0.0301519]
[1759018083070,3.56101335,109950.0,109940.0,0.0545919]
[1759018083697,3.48805726,109950.0,109940.0,0.0545919]
[1759018083908,3.77505726,109950.0,109940.0,0.10463832]
[1759018084346,3.77505726,109950.0,109940.0,0.07448642]
[1759018085308,3.95695812,109950.0,109940.0,0.07648642]
[1759018085922,3.97902565,109950.0,109940.0,0.07648642]
[1759018086764,3.97902565,109950.0,109940.0,0.07848642]
[1759018091695,3.99329636,109950.0,109940.0,0.07848642]
[1759018095530,3.97902565,109950.0,109940.0,0.07848642]
[1759018099868,3.99329637,109950.0,109940.0,0.07848642]
[1759018101446,3.78948798,109950.0,109940.0,0.08051642]
[1759018101630,3.78944798,109950.0,109940.0,0.08051642]
[1759018101857,3.50232798,109950.0,109940.0,0.08361642]
[1759018102076,3.78944798,109950.0,109940.0,0.08361642]
[1759018102506,3.50232798,109950.0,109940.0,0.08361642]
[1759018102711,3.78944798,109950.0,109940.0,0.08361642]
[1759018103791,3.78948798,109950.0,109940.0,0.08361642]
[1759018105013,3.50232798,109950.0,109940.0,0.08361642]
[1759018105217,3.78948798,109950.0,109940.0,0.08361642]
[1759018107003,3.97138884,109950.0,109940.0,0.07848642]
[1759018108305,3.78948798,109950.0,109940.0,0.07848642]
[1759018113070,3.50232798,109950.0,109940.0,0.07848642]
[1759018113276,3.78940798,109950.0,109940.0,0.07848642]
[1759018115526,3.57877298,109950.0,109940.0,0.07848642]
[1759018122486,3.29169298,109950.0,109940.0,0.08051642]
[1759018122698,3.57861298,109950.0,109940.0,0.08361642]
[1759018125382,3.387895,109950.0,109940.0,0.08361642]
[1759018126709,3.387895,109950.0,109940.0,0.08051642]
[1759018127612,3.56979586,109950.0,109940.0,0.07848642]
[1759018128103,3.387895,109950.0,109940.0,0.07848642]
[1759018128953,3.40216569,109950.0,109940.0,0.07848642]
[1759018130023,3.40216569,109950.0,109940.0,0.08361642]
[1759018130450,3.40216569,109950.0,109940.0,0.07848642]
[1759018131034,3.40216569,109950.0,109940.0,0.08370642]
[1759018131852,3.40208569,109950.0,109940.0,0.08370642]
[1759018133362,3.40208569,109950.0,109940.0,0.07848642]
[1759018134791,3.40208569,109950.0,109940.0,0.08064642]
[1759018136342,3.387815,109950.0,109940.0,0.08064642]
[1759018137362,3.56971586,109950.0,109940.0,0.07848642]
[1759018139053,3.59178339,109950.0,109940.0,0.07848642]
[1759018139456,3.60605447,109950.0,109940.0,0.07848642]
[1759018139858,3.60605447,109950.0,109940.0,0.07648642]
[1759018140083,3.60605447,109950.0,109940.0,0.07448642]
[1759018141078,4.29036341,109950.0,109940.0,0.07448642]
[1759018142271,4.2967711,109950.0,109940.0,0.07448642]
[1759018144164,4.2966911,109950.0,109940.0,0.07448642]
[1759018144580,4.06858812,109950.0,109940.0,0.07448642]
[1759018145774,3.78182812,109950.0,109940.0,0.07448642]
[1759018145982,4.06858812,109950.0,109940.0,0.07448642]
[1759018146350,4.05431704,109950.0,109940.0,0.07448642]
[1759018148077,4.05431704,109950.0,109940.0,0.02448642]
[1759018148259,4.28242002,109950.0,109940.0,0.02448642]
[1759018148457,4.30979859,109950.0,109940.0,0.02448642]
[1759018149508,4.32607069,109950.0,109940.0,0.02448642]
[1759018150510,4.35112028,109950.0,109940.0,0.02448642]
[1759018151109,5.03542922,109950.0,109940.0,0.02448642]
[1759018152718,5.08542922,109950.0,109940.0,0.02448642]
[1759018153165,5.18034922,109950.0,109940.0,0.02448642]